bitfinex/quotes_BTCUSD_20250219
["timestamp","ask_amount","ask_price","bid_price","bid_amount"]
[1739931821217,1.089297,95861.0,95853.0,0.27083601]
[1739931821351,0.01635835,95865.0,95853.0,0.27083601]
[1739931821352,0.682605,95860.0,95853.0,0.27083601]
[1739931821557,0.741022,95859.0,95853.0,0.27083601]
[1739931821762,1.880005,95858.0,95853.0,0.27083601]
[1739931822006,1.875021,95857.0,95853.0,0.27096703]
[1739931822231,2.015191,95856.0,95853.0,0.27096703]
[1739931822432,0.15,95854.0,95853.0,0.27096703]
[1739931822674,0.15,95854.0,95853.0,0.29096703]
[1739931822675,1.83179,95854.0,95853.0,0.29096703]
[1739931822851,0.537839,95854.0,95853.0,0.29096703]
[1739931823909,0.537839,95854.0,95853.0,0.29196703]
[1739931824323,0.387839,95854.0,95853.0,0.29196703]
[1739931824524,0.387839,95854.0,95853.0,0.29096703]
[1739931824720,0.387839,95854.0,95853.0,0.27096703]
[1739931827402,0.54563161,95854.0,95853.0,0.27096703]
[1739931827848,0.00779261,95854.0,95853.0,0.37176703]
[1739931828069,0.0004255,95865.0,95864.0,0.02]
[1739931828271,0.0004255,95865.0,95864.0,0.1008]
[1739931828476,0.0004255,95865.0,95864.0,0.1238]
[1739931828681,0.0004255,95865.0,95864.0,0.12484301]
[1739931830613,0.0004255,95865.0,95864.0,0.12984301]
[1739931831142,0.0004255,95865.0,95864.0,0.1288]
[1739931831537,0.0004255,95865.0,95864.0,0.1088]
[1739931831798,0.0004255,95865.0,95864.0,0.1288]
[1739931832143,0.01678203,95865.0,95864.0,0.1288]
[1739931832270,0.01678203,95865.0,95864.0,0.025]
[1739931832471,0.01678203,95865.0,95864.0,0.29583601]
[1739931832899,0.01678203,95865.0,95864.0,0.27583601]
[1739931833103,0.16678203,95865.0,95864.0,0.22134555]
[1739931833306,0.16678203,95865.0,95864.0,0.16496555]
[1739931833516,0.15,95864.0,95853.0,0.00013102]
[1739931833963,0.15,95862.0,95853.0,0.00013102]
[1739931834165,0.15,95860.0,95853.0,0.00013102]
[1739931834367,0.15,95858.0,95853.0,0.00013102]
[1739931835523,0.0004255,95865.0,95853.0,0.00098202]
[1739931835727,0.15,95863.0,95853.0,0.00098202]
[1739931835932,0.15,95861.0,95853.0,0.00098202]
[1739931836280,0.15,95859.0,95853.0,0.00098202]
[1739931836493,0.15,95857.0,95853.0,0.00098202]
[1739931836685,0.15,95855.0,95853.0,0.00098202]
[1739931836890,1.38605,95854.0,95853.0,0.00098202]
[1739931839016,1.41775019,95854.0,95853.0,0.00098202]
[1739931839265,1.38605,95854.0,95853.0,0.00098202]
[1739931840264,0.15,95854.0,95853.0,0.08168202]
[1739931840467,0.01636039,95860.0,95858.0,0.02]
[1739931840640,0.01636039,95860.0,95858.0,0.018]
[1739931841264,0.01636039,95860.0,95859.0,0.18296555]
[1739931841495,0.01636039,95860.0,95859.0,0.28666555]
[1739931842130,0.01636039,95860.0,95859.0,0.33396555]
[1739931842749,0.01636039,95860.0,95859.0,0.33596555]
[1739931843211,0.01636039,95860.0,95859.0,0.33396555]
[1739931843422,0.0004255,95864.0,95860.0,0.0999]
[1739931843621,0.0004255,95864.0,95861.0,0.00104294]
[1739931844366,0.0004255,95864.0,95863.0,0.018]
[1739931844643,0.0004255,95864.0,95863.0,0.01904294]
[1739931846437,0.01678247,95864.0,95863.0,0.01904294]
[1739931846870,0.01678247,95864.0,95863.0,0.018]
[1739931847242,0.01678247,95864.0,95863.0,0.73366555]
[1739931850676,0.01678247,95864.0,95863.0,0.83356555]
[1739931851085,0.01678247,95864.0,95863.0,0.88336555]
[1739931852772,0.01678247,95864.0,95863.0,0.87836555]
[1739931853075,0.0004255,95864.0,95863.0,0.88536555]
[1739931855338,0.0004252,95915.0,95864.0,0.041]
[1739931855539,0.0004252,95915.0,95864.0,1.22212764]
[1739931855758,0.0004252,95915.0,95864.0,1.06461384]
[1739931856209,0.00775666,95902.0,95864.0,1.06461384]
[1739931856419,0.01635322,95892.0,95864.0,1.06461384]
[1739931856638,0.01635322,95892.0,95864.0,0.87836555]
[1739931857056,0.01635322,95892.0,95864.0,0.88536555]
[1739931857335,0.023,95950.0,95902.0,0.02]
[1739931857522,0.023,95950.0,95881.0,0.023]
[1739931857523,0.01635438,95901.0,95896.0,0.02]
[1739931857646,0.01635438,95901.0,95900.0,0.02]
[1739931857851,0.15,95900.0,95899.0,0.02]
[1739931858695,0.000131,95900.0,95899.0,0.02]
[1739931859095,0.01648425,95900.0,95899.0,0.02]
[1739931859996,0.01648425,95900.0,95898.0,0.02]
[1739931859997,0.59939325,95900.0,95898.0,0.02]
[1739931860207,0.165521,95899.0,95898.0,0.02]
[1739931861367,0.165521,95899.0,95897.0,0.16496555]
[1739931861549,0.165521,95899.0,95897.0,0.14137904]
[1739931862093,0.165521,95899.0,95883.0,0.5457]
[1739931862094,0.165521,95899.0,95893.0,0.02]
[1739931862298,0.15,95898.0,95893.0,0.02]
[1739931862506,0.15,95896.0,95893.0,0.02]
[1739931862705,1.935902,95895.0,95893.0,0.02]
[1739931863118,1.935902,95895.0,95887.0,0.14137904]
[1739931863321,0.15,95894.0,95887.0,0.16137904]
[1739931863517,0.15,95892.0,95887.0,0.14137904]
[1739931863726,0.15,95890.0,95887.0,0.14137904]
[1739931864028,0.15,95890.0,95871.0,0.023]
[1739931864029,0.15,95888.0,95879.0,0.02]
[1739931864236,0.15,95888.0,95887.0,0.02]
[1739931864445,0.15,95888.0,95884.0,0.02]
[1739931864819,0.15,95888.0,95887.0,0.02]
[1739931865221,0.000131,95900.0,95887.0,0.02]
[1739931865379,0.001,95894.0,95887.0,0.02]
[1739931865580,0.15,95892.0,95887.0,0.02]
[1739931865829,0.15,95890.0,95887.0,0.02]
[1739931865985,0.003,95888.0,95887.0,0.02]
[1739931866831,0.01635551,95888.0,95887.0,0.02]
[1739931867207,0.01935551,95888.0,95881.0,0.02]
[1739931867472,0.01935551,95888.0,95880.0,0.14137904]
[1739931867658,0.15,95886.0,95880.0,0.14137904]
[1739931867902,0.15,95884.0,95880.0,0.14137904]
[1739931868119,0.15,95882.0,95880.0,0.14137904]
[1739931868600,0.828301,95881.0,95880.0,0.14137904]
[1739931869029,0.808708,95881.0,95880.0,0.14137904]
[1739931869252,0.619465,95881.0,95880.0,0.14137904]
[1739931869611,0.15,95881.0,95880.0,0.14137904]
[1739931869810,1.908544,95881.0,95880.0,0.14137904]
[1739931870155,1.721566,95881.0,95880.0,0.14137904]
[1739931870498,1.689352,95881.0,95880.0,0.14137904]
[1739931870699,1.631997,95881.0,95880.0,0.14137904]
[1739931871581,1.628997,95881.0,95880.0,0.14137904]
[1739931871936,1.629997,95881.0,95880.0,0.14137904]
[1739931875476,1.514878,95881.0,95880.0,0.14137904]
[1739931875901,1.49951,95881.0,95880.0,0.14137904]
[1739931876663,1.51586651,95881.0,95880.0,0.14137904]
[1739931877777,1.51486651,95881.0,95880.0,0.14137904]
[1739931877975,0.16635651,95881.0,95880.0,0.16137904]
[1739931882624,0.16635651,95881.0,95880.0,0.16237904]
[1739931883367,0.71683551,95881.0,95880.0,0.16322964]
[1739931883570,0.74820251,95881.0,95880.0,0.16322964]
[1739931883769,0.731846,95881.0,95880.0,0.16322964]
[1739931884159,0.731846,95881.0,95880.0,0.16222964]
[1739931884363,0.731846,95881.0,95880.0,0.16322964]
[1739931884512,0.731846,95881.0,95880.0,0.16222964]
[1739931884735,0.731846,95881.0,95880.0,0.16422964]
[1739931885137,0.731846,95881.0,95880.0,0.16222964]
[1739931886715,0.731846,95881.0,95880.0,0.00869903]
[1739931886921,0.74820242,95881.0,95880.0,0.00869903]
[1739931887958,0.77153775,95881.0,95880.0,0.00869903]
[1739931888364,0.76953775,95881.0,95880.0,0.00869903]
[1739931888572,0.75120242,95881.0,95880.0,0.00869903]
[1739931889315,0.75320242,95881.0,95880.0,0.00869903]
[1739931890211,1.81587152,95881.0,95880.0,0.00869903]
[1739931890415,1.833201,95883.0,95880.0,0.00869903]
[1739931890617,0.016356,95881.0,95880.0,0.00869903]
[1739931890818,1.811671,95881.0,95880.0,0.00869903]
[1739931891022,1.717681,95881.0,95880.0,0.00869903]
[1739931891175,1.717681,95881.0,95880.0,0.01503449]
[1739931891176,1.719681,95881.0,95880.0,0.01503449]
[1739931891382,0.02135682,95881.0,95880.0,0.08709903]
[1739931891588,0.01635682,95881.0,95880.0,0.08709903]
[1739931891784,0.01635682,95881.0,95880.0,0.13699903]
[1739931891984,0.01935682,95881.0,95880.0,0.13699903]
[1739931892191,0.01635682,95881.0,95880.0,0.13699903]
[1739931893602,0.01635682,95881.0,95880.0,0.13999903]
[1739931893841,0.01635682,95881.0,95880.0,0.13699903]
[1739931894357,0.01635682,95881.0,95880.0,0.15999903]
[1739931894717,0.0004253,95897.0,95880.0,0.15999903]
[1739931894916,0.15,95895.0,95880.0,0.15999903]
[1739931895119,0.15,95893.0,95880.0,0.15999903]
[1739931895299,0.0004254,95881.0,95880.0,0.15999903]
[1739931897084,0.0004254,95881.0,95880.0,0.15699903]
[1739931897287,0.1504254,95881.0,95880.0,0.15699903]
[1739931897720,0.16678061,95881.0,95880.0,0.15699903]
[1739931897879,0.16678061,95881.0,95880.0,0.15999903]
[1739931898063,0.16678061,95881.0,95880.0,0.15699903]
[1739931898575,0.16678061,95881.0,95880.0,0.15999903]
[1739931898780,0.16678061,95881.0,95880.0,0.15699903]
[1739931899000,0.16678061,95881.0,95880.0,0.16099903]
[1739931903221,0.16678061,95881.0,95880.0,0.15699903]
[1739931903418,0.1504254,95881.0,95880.0,0.15699903]
[1739931903645,0.1504254,95881.0,95880.0,0.16099903]
[1739931912003,0.0004254,95881.0,95880.0,0.18099903]
[1739931912201,0.0004254,95881.0,95880.0,0.20399903]
[1739931913456,0.0004254,95881.0,95880.0,0.19999903]
[1739931913664,0.0004254,95881.0,95880.0,0.75169903]
[1739931916977,0.01677775,95881.0,95880.0,0.75169903]
[1739931922639,0.01677775,95881.0,95880.0,0.73169903]
[1739931922766,0.01677775,95881.0,95880.0,0.75169903]
[1739931923395,0.01677775,95881.0,95880.0,0.73169903]
[1739931924363,0.01677775,95881.0,95880.0,0.75169903]
[1739931924694,0.01677775,95881.0,95880.0,0.73169903]
[1739931924899,0.0004254,95881.0,95880.0,0.73169903]
[1739931925399,0.0004254,95881.0,95880.0,0.75169903]
[1739931928221,0.01677851,95881.0,95880.0,0.75169903]
[1739931935731,0.0004254,95881.0,95880.0,0.75169903]
[1739931938656,0.01677861,95881.0,95880.0,0.75169903]
[1739931939367,0.01677861,95881.0,95880.0,0.60339903]
[1739931940462,0.01677861,95881.0,95880.0,0.59739903]
[1739931940867,0.01677861,95881.0,95880.0,0.60139903]
[1739931941708,0.01677861,95881.0,95880.0,0.62139903]
[1739931941849,0.01677861,95881.0,95880.0,0.60139903]
[1739931942255,0.01677861,95881.0,95880.0,0.05569903]
[1739931942599,0.01677861,95881.0,95880.0,0.07569903]
[1739931943190,0.0004254,95881.0,95880.0,0.07569903]
[1739931943633,0.0004254,95881.0,95880.0,0.07169903]
[1739931943835,0.0004254,95881.0,95880.0,0.15269903]
[1739931943988,0.0004254,95881.0,95880.0,0.15769903]
[1739931944777,0.0004254,95881.0,95880.0,0.15269903]
[1739931946191,0.01677892,95881.0,95880.0,0.15669903]
[1739931946594,0.01677892,95881.0,95880.0,0.15269903]
[1739931946752,0.01677892,95881.0,95880.0,0.15869903]
[1739931949532,0.01677892,95881.0,95880.0,0.20859903]
[1739931954303,0.01677892,95881.0,95880.0,0.75429903]
[1739931954605,0.0004254,95881.0,95880.0,0.75429903]
[1739931956328,0.0004254,95881.0,95880.0,0.74829903]
[1739931956671,0.0004254,95881.0,95880.0,0.75429903]
[1739931957687,0.01677828,95881.0,95880.0,0.75429903]
[1739931963392,0.0004254,95881.0,95880.0,0.75429903]
[1739931964624,0.25800184,95949.0,95880.0,0.75429903]
[1739931964803,0.02866973,95935.0,95881.0,0.57759116]
[1739931965005,0.15,95933.0,95881.0,0.55459116]
[1739931965211,0.0077494,95895.0,95882.0,0.023]
[1739931965410,0.0077494,95895.0,95894.0,0.02]
[1739931967157,0.0077494,95895.0,95894.0,0.022]
[1739931967550,0.02410218,95895.0,95894.0,0.02]
[1739931967761,0.02410218,95895.0,95894.0,0.022]
[1739931967960,0.02410218,95895.0,95894.0,0.02]
[1739931969096,0.02410218,95895.0,95894.0,0.02784843]
[1739931969500,0.02410218,95895.0,95894.0,0.03084843]
[1739931969672,0.02410218,95895.0,95894.0,0.02784843]
[1739931970093,0.02410218,95895.0,95894.0,0.03084843]
[1739931971484,0.02410218,95895.0,95894.0,0.05084843]
[1739931972031,0.0077494,95895.0,95894.0,0.05084843]
[1739931972165,0.0077494,95895.0,95894.0,0.04957443]
[1739931972374,0.0077494,95895.0,95894.0,0.04447843]
[1739931973219,0.0077494,95895.0,95894.0,0.02784843]
[1739931973435,0.0077494,95895.0,95894.0,0.04147843]
[1739931973642,0.0077494,95895.0,95894.0,0.04347843]
[1739931975723,0.0077494,95895.0,95894.0,0.04147843]
[1739931976508,0.0077494,95895.0,95894.0,0.04447843]
[1739931976620,0.0081749,95895.0,95894.0,0.04147843]
[1739931976823,0.0081749,95895.0,95894.0,0.04347843]
[1739931977880,0.02866973,95945.0,95896.0,0.02]
[1739931978085,1.90334463,95944.0,95897.0,0.00784843]
[1739931978283,1.833201,95943.0,95897.0,0.00784843]
[1739931978508,1.566626,95943.0,95897.0,0.00784843]
[1739931978857,1.566626,95942.0,95897.0,0.00784843]
[1739931979035,1.566626,95943.0,95897.0,0.00784843]
[1739931979245,0.10250365,95942.0,95897.0,0.00784843]
[1739931979438,1.566626,95941.0,95897.0,0.00784843]
[1739931979639,0.0210762,95909.0,95897.0,0.00784843]
[1739931979871,0.96098,95908.0,95897.0,0.00784843]
[1739931980078,0.592364,95907.0,95897.0,0.00884843]
[1739931980286,0.640241,95906.0,95897.0,0.00884843]
[1739931980486,0.15,95904.0,95897.0,0.00784843]
[1739931980694,0.15789102,95902.0,95901.0,0.02]
[1739931980968,0.02109293,95919.0,95910.0,0.02]
[1739931981176,0.15,95917.0,95910.0,0.02]
[1739931981383,0.05864,95940.0,95910.0,0.019]
[1739931981553,0.20864,95939.0,95910.0,0.019]
[1739931981754,0.02090467,95921.0,95910.0,0.019]
[1739931981902,0.15,95919.0,95910.0,0.019]
[1739931982097,0.103225,95918.0,95910.0,0.019]
[1739931982316,0.02090467,95921.0,95910.0,0.019]
[1739931982521,0.15,95919.0,95910.0,0.019]
[1739931982736,0.15,95917.0,95910.0,0.019]
[1739931983137,0.01635073,95916.0,95910.0,0.019]
[1739931983553,0.15,95917.0,95910.0,0.019]
[1739931983758,0.02090467,95921.0,95910.0,0.019]
[1739931983961,0.15,95919.0,95910.0,0.019]
[1739931984156,0.15,95917.0,95910.0,0.019]
[1739931984529,0.02090467,95921.0,95910.0,0.019]
[1739931984737,0.00795872,95911.0,95910.0,0.019]
[1739931984930,0.49851072,95911.0,95910.0,0.019]
[1739931986645,0.49851072,95911.0,95910.0,0.021]
[1739931987008,0.15795872,95911.0,95910.0,0.021]
[1739931987464,0.15795872,95911.0,95910.0,0.019]
[1739931987599,0.17430953,95911.0,95910.0,0.019]
[1739931987803,0.17430953,95911.0,95910.0,0.02]
[1739931988005,0.01635081,95911.0,95910.0,0.02]
[1739931988207,0.57579481,95911.0,95910.0,0.02]
[1739931988410,0.59114481,95911.0,95910.0,0.02]
[1739931989479,0.39635536,95911.0,95910.0,0.019]
[1739931990162,0.39635536,95911.0,95910.0,0.02]
[1739931992778,0.39635536,95911.0,95910.0,0.019]
[1739931992930,0.39635536,95911.0,95910.0,0.02684843]
[1739931993135,0.38000455,95911.0,95910.0,0.02784843]
[1739931995023,0.36884255,95911.0,95910.0,0.02784843]
[1739931995451,0.21345055,95911.0,95910.0,0.02784843]
[1739931996217,0.22980146,95911.0,95910.0,0.02784843]
[1739931997419,0.02424846,95911.0,95910.0,0.02784843]
[1739931997618,0.23552846,95911.0,95910.0,0.02784843]
[1739931997822,0.23552846,95911.0,95910.0,0.01646843]
[1739931999081,0.23552846,95911.0,95910.0,0.01546843]
[1739931999306,0.23552846,95911.0,95910.0,0.01846843]
[1739932000171,0.23552846,95911.0,95910.0,0.01546843]
[1739932000536,0.23552846,95911.0,95910.0,0.01646843]
[1739932001275,0.01092971,95911.0,95910.0,0.01731923]
[1739932001474,0.01635095,95911.0,95910.0,0.01731923]
[1739932001895,0.15,95915.0,95910.0,0.01731923]
[1739932002154,0.15,95913.0,95910.0,0.01731923]
[1739932002343,0.511696,95912.0,95910.0,0.01731923]
[1739932002539,0.560081,95911.0,95910.0,0.01731923]
[1739932003378,0.560081,95911.0,95910.0,0.01631923]
[1739932003555,0.56794345,95911.0,95910.0,0.01631923]
[1739932004209,0.56794345,95911.0,95910.0,0.01731923]
[1739932008093,0.51286945,95911.0,95910.0,0.01731923]
[1739932011845,0.52922042,95911.0,95910.0,0.01731923]
[1739932013017,0.17421342,95911.0,95910.0,0.01731923]
[1739932013218,0.15786245,95911.0,95910.0,0.01731923]
[1739932014241,0.15828785,95911.0,95910.0,0.01731923]
[1739932017431,0.17463882,95911.0,95910.0,0.01731923]
[1739932020532,0.15,95910.0,95903.0,0.081]
[1739932020708,0.15,95908.0,95883.0,0.02]
[1739932020922,0.15,95906.0,95871.0,0.01168919]
[1739932021130,0.15,95904.0,95880.0,0.0209816]
[1739932021449,0.15,95902.0,95880.0,0.0209816]
[1739932021617,0.01635348,95899.0,95880.0,0.0209816]
[1739932021783,0.15,95897.0,95880.0,0.0209816]
[1739932021991,0.15,95895.0,95880.0,0.0209816]
[1739932022237,0.15,95893.0,95880.0,0.0209816]
[1739932023448,0.0004254,95911.0,95880.0,0.0209816]
[1739932023647,0.15,95906.0,95881.0,0.0763]
[1739932023865,0.15,95904.0,95882.0,0.0451]
[1739932024080,0.15,95902.0,95882.0,0.0451]
[1739932024233,0.02070932,95898.0,95882.0,0.0451]
[1739932024441,0.15,95896.0,95882.0,0.0451]
[1739932024645,0.02070932,95898.0,95880.0,0.0009816]
[1739932024646,0.15,95894.0,95880.0,0.0009816]
[1739932024939,0.15,95892.0,95880.0,0.0009816]
[1739932025171,0.15,95890.0,95880.0,0.0009816]
[1739932025376,1.366276,95889.0,95880.0,0.0009816]
[1739932025752,0.15,95888.0,95876.0,0.0763]
[1739932026111,0.15,95886.0,95873.0,0.03006827]
[1739932026330,1.366276,95885.0,95873.0,0.03006827]
[1739932026533,0.15,95884.0,95872.0,0.3246]
[1739932026795,0.15,95884.0,95862.0,0.10374464]
[1739932026796,0.15,95882.0,95880.0,0.001]
[1739932027021,1.516276,95881.0,95880.0,0.001]
[1739932027470,1.53687972,95881.0,95880.0,0.001]
[1739932028160,1.59643972,95881.0,95880.0,0.001]
[1739932028501,0.17,95880.0,95860.0,0.3246]
[1739932028701,0.15,95878.0,95860.0,0.3246]
[1739932028897,0.15,95876.0,95849.0,0.0751]
[1739932029106,0.15,95874.0,95849.0,0.0751]
[1739932029311,0.15,95872.0,95849.0,0.0751]
[1739932029516,0.15,95870.0,95849.0,0.0751]
[1739932029719,0.15,95868.0,95849.0,0.0751]
[1739932029962,0.15,95866.0,95849.0,0.0751]
[1739932030164,1.516276,95865.0,95849.0,0.0751]
[1739932030480,1.516276,95865.0,95847.0,0.0008504]
[1739932031937,1.55911649,95865.0,95847.0,0.0008504]
[1739932032341,1.56211649,95865.0,95847.0,0.0008504]
[1739932033356,1.65828468,95865.0,95847.0,0.0008504]
[1739932034325,1.678781,95865.0,95847.0,0.0008504]
[1739932035338,1.58261281,95865.0,95847.0,0.0008504]
[1739932035738,1.57961281,95865.0,95847.0,0.0008504]
[1739932035936,1.58261281,95865.0,95847.0,0.0008504]
[1739932042255,1.57961281,95865.0,95847.0,0.0008504]
[1739932042590,1.58261281,95865.0,95847.0,0.0008504]
[1739932044105,1.68511646,95865.0,95847.0,0.0008504]
[1739932045646,1.58261281,95865.0,95847.0,0.0008504]
[1739932045958,1.58261281,95865.0,95857.0,0.0822]
[1739932046166,1.59897266,95865.0,95857.0,0.0822]
[1739932046384,0.15,95864.0,95857.0,0.0675415]
[1739932046584,1.516276,95864.0,95857.0,0.0675415]
[1739932046909,0.15,95862.0,95857.0,0.0675415]
[1739932047112,0.15,95860.0,95857.0,0.0675415]
[1739932047308,0.15,95858.0,95857.0,0.0675415]
[1739932047620,1.516276,95858.0,95857.0,0.0675415]
[1739932048223,1.516276,95858.0,95847.0,0.0008504]
[1739932048450,0.15,95856.0,95853.0,0.00098202]
[1739932048627,0.15,95854.0,95853.0,0.00098202]
[1739932048854,1.516276,95854.0,95853.0,0.00098202]
[1739932049616,1.25573804,95854.0,95853.0,0.00098202]
[1739932049820,1.27209919,95854.0,95853.0,0.00098202]
[1739932050185,1.23740819,95854.0,95853.0,0.00098202]
[1739932050543,1.73740819,95854.0,95853.0,0.00098202]
[1739932051195,1.44275519,95854.0,95853.0,0.00098202]
[1739932053203,1.576395,95854.0,95853.0,0.00098202]
[1739932056222,1.59275508,95854.0,95853.0,0.00098202]
[1739932058016,0.15,95853.0,95851.0,0.02877302]
[1739932058231,0.15,95853.0,95845.0,0.045]
[1739932058232,1.405739,95853.0,95845.0,0.02014402]
[1739932058451,1.405739,95853.0,95828.0,0.02]
[1739932058452,0.15,95851.0,95828.0,0.02]
[1739932058663,0.15,95849.0,95829.0,0.02]
[1739932058865,0.15,95847.0,95829.0,0.02]
[1739932059079,0.15,95845.0,95829.0,0.02]
[1739932059221,0.15,95843.0,95829.0,0.02]
[1739932059417,0.15,95841.0,95829.0,0.02]
[1739932060658,0.01636287,95843.0,95829.0,0.02]
[1739932061037,0.15,95840.0,95834.0,0.0785]
[1739932061242,0.15,95840.0,95835.0,0.0499]
[1739932061464,0.15,95840.0,95836.0,0.0785]
[1739932061700,0.15,95840.0,95837.0,0.08374464]
[1739932061999,0.15,95840.0,95838.0,0.0816]
[1739932063174,0.15,95840.0,95838.0,0.0856]
[1739932065790,0.15,95840.0,95838.0,0.0816]
[1739932066196,0.15,95840.0,95838.0,0.0846]
[1739932066398,0.16636178,95840.0,95838.0,0.0846]
[1739932069299,0.16636178,95840.0,95839.0,0.02]
[1739932069505,0.16636178,95840.0,95839.0,0.0998]
[1739932070281,0.16636178,95840.0,95839.0,0.1487]
[1739932071919,0.42559771,95841.0,95839.0,0.1537]
[1739932072917,0.49999971,95841.0,95839.0,0.1537]
[1739932073119,0.49999971,95841.0,95839.0,0.1487]
[1739932073279,0.49999971,95841.0,95839.0,0.1527]
[1739932074424,0.15,95840.0,95839.0,0.1527]
[1739932075410,1.09507,95840.0,95839.0,0.004]
[1739932075615,0.827407,95840.0,95838.0,0.0008512]
[1739932075810,0.682944,95839.0,95838.0,0.0008512]
[1739932076009,0.512619,95839.0,95838.0,0.0208512]
[1739932076257,0.15,95839.0,95838.0,0.0208512]
[1739932077947,0.49999971,95841.0,95839.0,0.02]
[1739932079093,0.49999971,95841.0,95839.0,0.023]
[1739932079323,0.49999971,95841.0,95839.0,0.02]
[1739932079791,0.49999971,95841.0,95839.0,0.023]
[1739932080346,0.49999971,95841.0,95839.0,0.003]
[1739932081580,0.49999971,95841.0,95838.0,0.0008512]
[1739932081982,0.51636144,95841.0,95839.0,0.003]
[1739932083129,0.49999971,95841.0,95838.0,0.0008512]
[1739932083277,0.49999971,95841.0,95839.0,0.02]
[1739932084515,0.49999971,95841.0,95839.0,0.02]
[1739932084817,0.49999971,95841.0,95840.0,0.02]
[1739932085807,0.49999971,95841.0,95839.0,0.02]
[1739932086218,0.51636142,95841.0,95840.0,0.003]
[1739932086383,0.64346542,95841.0,95840.0,0.003]
[1739932086589,0.79346542,95841.0,95840.0,0.003]
[1739932086784,0.66636142,95841.0,95840.0,0.003]
[1739932086989,0.15,95840.0,95838.0,0.0008512]
[1739932087213,1.255739,95839.0,95838.0,0.0008512]
[1739932088431,1.405739,95839.0,95838.0,0.0008512]
[1739932088692,1.534539,95839.0,95838.0,0.0008512]
[1739932088913,1.63704265,95839.0,95838.0,0.0018512]
[1739932089136,1.63704265,95839.0,95794.0,0.0823]
[1739932089137,0.0794,95833.0,95794.0,0.0823]
[1739932089337,0.15,95831.0,95794.0,0.0823]
[1739932089540,1.302439,95832.0,95794.0,0.0823]
[1739932089541,1.485139,95830.0,95794.0,0.0823]
[1739932089693,0.15,95828.0,95794.0,0.0823]
[1739932089891,0.0797,95825.0,95792.0,0.0466]
[1739932090186,0.15,95823.0,95792.0,0.0466]
[1739932090376,0.15,95821.0,95791.0,0.0004]
[1739932090589,0.15,95819.0,95814.0,0.00098189]
[1739932090745,0.15,95817.0,95814.0,0.00098189]
[1739932090947,0.15,95815.0,95814.0,0.00098189]
[1739932091153,1.405739,95815.0,95814.0,0.00098189]
[1739932091358,1.44285724,95815.0,95814.0,0.00098189]
[1739932092768,1.44785724,95815.0,95791.0,0.02032524]
[1739932092970,0.15,95813.0,95791.0,0.02076239]
[1739932093216,0.15,95811.0,95791.0,0.02076239]
[1739932093612,0.15,95809.0,95791.0,0.02076239]
[1739932093815,0.15,95807.0,95791.0,0.02076239]
[1739932094373,0.15,95805.0,95791.0,0.02076239]
[1739932094578,0.15,95803.0,95791.0,0.02076239]
[1739932095020,0.02074992,95815.0,95791.0,0.02076239]
[1739932095172,0.154,95813.0,95791.0,0.02076239]
[1739932095376,0.15,95811.0,95791.0,0.02076239]
[1739932095709,0.15,95809.0,95791.0,0.02161379]
[1739932095852,0.446458,95808.0,95791.0,0.02161379]
[1739932096198,0.15,95809.0,95791.0,0.00161379]
[1739932096437,0.15,95807.0,95791.0,0.02161379]
[1739932096644,0.131583,95806.0,95802.0,0.08374464]
[1739932096865,0.5,95811.0,95803.0,0.1305]
[1739932097091,0.744343,95810.0,95803.0,0.1305]
[1739932097298,0.15,95808.0,95803.0,0.1305]
[1739932097510,0.191996,95807.0,95803.0,0.1305]
[1739932097720,0.15,95805.0,95803.0,0.1305]
[1739932098982,0.01636776,95809.0,95803.0,0.1315]
[1739932099386,0.15,95807.0,95803.0,0.1315]
[1739932099587,0.15,95805.0,95803.0,0.0487]
[1739932099943,0.856744,95804.0,95803.0,0.001]
[1739932101184,0.15,95803.0,95797.0,0.0788]
[1739932101315,1.405739,95803.0,95797.0,0.0788]
[1739932101527,0.15,95801.0,95797.0,0.0788]
[1739932103121,0.0602,95811.0,95797.0,0.0788]
[1739932103322,0.15,95809.0,95797.0,0.0788]
[1739932103521,1.186952,95808.0,95797.0,0.0788]
[1739932103679,1.186952,95807.0,95797.0,0.0788]
[1739932103894,0.5,95807.0,95797.0,0.0788]
[1739932104124,0.532769,95806.0,95797.0,0.0788]
[1739932104729,0.532769,95806.0,95797.0,0.0798]
[1739932104955,0.532769,95806.0,95797.0,0.0788]
[1739932105743,0.532769,95806.0,95797.0,0.0798]
[1739932105943,0.15,95805.0,95797.0,0.0798]
[1739932106383,0.01636872,95804.0,95797.0,0.0798]
[1739932108056,0.01636872,95804.0,95797.0,0.0788]
[1739932108279,0.01636872,95804.0,95794.0,0.0688]
[1739932108280,0.650072,95803.0,95794.0,0.0488]
[1739932108892,0.650072,95803.0,95797.0,0.001]
[1739932109101,0.650072,95803.0,95794.0,0.0488]
[1739932109310,0.15,95802.0,95792.0,0.3246]
[1739932109535,0.15,95800.0,95792.0,0.3246]
[1739932109673,0.15,95798.0,95792.0,0.3246]
[1739932109873,0.15,95796.0,95792.0,0.3246]
[1739932110105,0.15,95794.0,95792.0,0.3246]
[1739932110434,0.15,95792.0,95791.0,0.00161379]
[1739932110739,1.336952,95792.0,95791.0,0.00161379]
[1739932111777,1.019287,95792.0,95791.0,0.00261379]
[1739932112491,1.019287,95792.0,95791.0,0.00161379]
[1739932113503,1.019287,95792.0,95791.0,0.00261379]
[1739932115673,0.770969,95792.0,95791.0,0.00161379]
[1739932115983,0.770969,95792.0,95791.0,0.00261379]
[1739932116211,0.770969,95792.0,95791.0,0.00161379]
[1739932116583,0.770969,95792.0,95791.0,0.00261379]
[1739932116789,0.78733954,95792.0,95791.0,0.00261379]
[1739932117202,0.55547754,95792.0,95791.0,0.00261379]
[1739932117769,0.53459754,95792.0,95791.0,0.00261379]
[1739932117950,0.39511854,95792.0,95791.0,0.00261379]
[1739932118249,0.39511854,95792.0,95791.0,0.05251379]
[1739932118250,0.30327954,95792.0,95791.0,0.05251379]
[1739932119023,0.02102885,95792.0,95791.0,0.05251379]
[1739932119216,0.01636999,95792.0,95791.0,0.05251379]